[Event "HUN-ch Rapid 2019"]
[Site "Ajka"]
[Date "2019.07.19"]
[Round "3.5"]
[White "Jakab, Attila"]
[Black "Hera, Imre Jr."]
[Result "0-1"]
[ECO "D21"]
[WhiteElo "2377"]
[BlackElo "2610"]
[Annotator "RC"]
[PlyCount "58"]
[EventDate "2019.07.18"]
[EventType "swiss"]
[EventCountry "HUN"]
[SourceTitle "playchess.com"]
[Source "ChessBase"]
[SourceQuality "1"]
[TimeControl "1200+5"]

1. d4 {[%emt 0:00:05]} d5 {[%emt 0:00:03]} 2. c4 {[%emt 0:00:08]} dxc4 {[%emt 0:00:03]} 3. Nf3 {[%emt 0:00:01]} a6 {[%emt 0:00:09]} 4. e3 {[%emt 0:00:07]} Bg4 {[%emt 0:00:03]} 5. Bxc4 {[%emt 0:00:03]} e6 {[%emt 0:00:01]} 6. O-O {[%emt 0:00:03]} Nc6 {[%emt 0:00:02]} 7. h3 {[%emt 0:00:26]} Bh5 {[%emt 0:00:01]} 8. Nbd2 {[%emt 0:00:40]} Nf6 {[%emt 0:00:09]} 9. b3 {[%emt 0:00:02]} Bd6 {[%emt 0:00:02]} 10. Bb2 {[%emt 0:00:02]} O-O {[%emt 0:00:04]} 11. Be2 {[%emt 0:00:02]} Nd5 {[%emt 0:00:33]} 12. Rc1 {[%emt 0:00:18]} f5 {[%emt 0:00:06]} 13. Nc4 {[%emt 0:00:25]} Qe8 {[%emt 0:01:38]} 14. Nxd6 {[%emt 0:01:32]} cxd6 {[%emt 0:00:02]} 15. Nd2 {[%emt 0:00:02]} Bxe2 {[%emt 0:00:09]} 16. Qxe2 {[%emt 0:00:02]} Rd8 {[%emt 0:00:07]} 17. g3 {[%emt 0:01:01]} Qg6 {[%emt 0:01:10]} 18. Kh2 {[%emt 0:00:07]} Nf6 {[%emt 0:00:27]} 19. Ba3 {[%emt 0:01:59]} Rfe8 {[%emt 0:00:52]} 20. Nc4 {[%emt 0:00:22]} Ne4 {[%emt 0:00:09]} 21. Rg1 {[%emt 0:00:49]} e5 {[%emt 0:00:36]} 22. f3 {[%emt 0:01:11]} Ng5 {[%emt 0:00:09]} 23. h4 {[%emt 0:00:02]} Nf7 {[%emt 0:00:07]} 24. d5 {[%emt 0:00:04]} Ne7 {[%emt 0:00:03]} 25. e4 {[%emt 0:00:03]} h5 {[%emt 0:00:49]} 26. Nb6 {[%emt 0:02:22]} Nh6 {[%emt 0:00:55]} 27. Rc7 {[%emt 0:00:02]} fxe4 {[%emt 0:00:13]} 28. Qxe4 {[%emt 0:00:59]} Ng4+ {[%emt 0:00:08]} 29. Kg2 {[%emt 0:00:08]} Nf5 {[%emt 0:00:01]} 0-1

[Event "HUN-ch Rapid 2019"]
[Site "Ajka"]
[Date "2019.07.19"]
[Round "3.7"]
[White "Varga, Peter"]
[Black "Ruck, Robert"]
[Result "1/2-1/2"]
[ECO "A35"]
[WhiteElo "2367"]
[BlackElo "2524"]
[Annotator "ChessBase"]
[PlyCount "97"]
[EventDate "2019.07.18"]
[EventType "swiss"]
[EventCountry "HUN"]
[SourceTitle "playchess.com"]
[Source "ChessBase"]
[SourceQuality "1"]
[TimeControl "1200+5"]

1. Nf3 {[%emt 0:00:03]} c5 {[%emt 0:00:09]} 2. c4 {[%emt 0:00:03]} Nf6 {[%emt 0:00:01]} 3. Nc3 {[%emt 0:00:07]} Nc6 {[%emt 0:00:02]} 4. g3 {[%emt 0:00:10]} d5 {[%emt 0:00:02]} 5. cxd5 {[%emt 0:00:11]} Nxd5 {[%emt 0:00:02]} 6. Bg2 {[%emt 0:00:06]} Nc7 {[%emt 0:00:02]} 7. O-O {[%emt 0:00:08]} e5 {[%emt 0:00:04]} 8. d3 {[%emt 0:00:02]} Be7 {[%emt 0:00:04]} 9. Nd2 {[%emt 0:00:16]} Bd7 {[%emt 0:00:02]} 10. Nc4 {[%emt 0:00:13]} f6 {[%emt 0:00:04]} 11. f4 {[%emt 0:00:21]} b5 {[%emt 0:00:12]} 12. Ne3 {[%emt 0:00:04]} exf4 {[%emt 0:00:26]} 13. gxf4 {[%emt 0:00:11]} Rb8 {[%emt 0:00:53]} 14. Ncd5 {[%emt 0:00:28]} O-O {[%emt 0:00:40]} 15. b3 {[%emt 0:00:59]} Bd6 {[%emt 0:00:39]} 16. Nxc7 {[%emt 0:00:34]} Qxc7 {[%emt 0:01:07]} 17. Nd5 {[%emt 0:00:04]} Qd8 {[%emt 0:00:01]} 18. Be3 {[%emt 0:02:45]} Re8 {[%emt 0:00:43]} 19. Rc1 {[%emt 0:02:33]} Bg4 {[%emt 0:03:38]} 20. Rf2 {[%emt 0:01:04]} Qd7 {[%emt 0:00:38]} 21. Bxc5 {[%emt 0:01:15]} Bxc5 {[%emt 0:00:03]} 22. Rxc5 {[%emt 0:00:01]} Nd4 {[%emt 0:00:01]} 23. Nc3 {[%emt 0:02:04]} Nxe2+ {[%emt 0:04:16]} 24. Nxe2 {[%emt 0:01:21]} Bxe2 {[%emt 0:00:02]} 25. Rd5 {[%emt 0:01:22]} Qe7 {[%emt 0:00:10]} 26. Qd2 {[%emt 0:00:07]} Bg4 {[%emt 0:00:20]} 27. f5 {[%emt 0:01:28]} Bh5 {[%emt 0:00:35]} 28. b4 {[%emt 0:00:57]} Bf7 {[%emt 0:01:47]} 29. Rc5 {[%emt 0:00:01]} Qd6 {[%emt 0:00:08]} 30. d4 {[%emt 0:00:59]} Bc4 {[%emt 0:00:46]} 31. a4 {[%emt 0:00:29]} Re7 {[%emt 0:00:01]} 32. axb5 {[%emt 0:00:12]} Bxb5 {[%emt 0:00:01]} 33. Bd5+ {[%emt 0:00:12]} Kh8 {[%emt 0:00:03]} 34. Be6 {[%emt 0:00:01]} a6 {[%emt 0:00:25]} 35. Qc3 {[%emt 0:00:24]} Rd8 {[%emt 0:02:11]} 36. d5 {[%emt 0:00:04]} Qb6 {[%emt 0:00:01]} 37. Rc8 {[%emt 0:00:22]} Ree8 {[%emt 0:00:18]} 38. Rxd8 {[%emt 0:00:07]} Rxd8 {[%emt 0:00:01]} 39. Qc5 {[%emt 0:00:01]} Qb8 {[%emt 0:00:01]} 40. Qe7 {[%emt 0:00:47]} Re8 {[%emt 0:00:25]} 41. Qf7 {[%emt 0:00:02]} Qe5 {[%emt 0:00:23]} 42. h4 {[%emt 0:00:09]} Qg3+ {[%emt 0:01:34]} 43. Rg2 {[%emt 0:00:01]} Qe1+ {[%emt 0:00:01]} 44. Kh2 {[%emt 0:00:01]} Qxh4+ {[%emt 0:00:02]} 45. Kg1 {[%emt 0:00:01]} Qe1+ {[%emt 0:00:20]} 46. Kh2 {[%emt 0:00:00]} Qh4+ {[%emt 0:00:01]} 47. Kg1 {[%emt 0:00:01]} Qe1+ {[%emt 0:00:15]} 48. Kh2 {[%emt 0:00:00]} Qh4+ 49. Kg1 1/2-1/2

[Event "HUN-ch Rapid 2019"]
[Site "Ajka"]
[Date "2019.07.19"]
[Round "3.8"]
[White "Prohaszka, Peter"]
[Black "Csiszar, Csaba"]
[Result "0-1"]
[ECO "A62"]
[WhiteElo "2598"]
[BlackElo "2432"]
[Annotator "ChessBase"]
[PlyCount "129"]
[EventDate "2019.07.18"]
[EventType "swiss"]
[EventCountry "HUN"]
[SourceTitle "playchess.com"]
[Source "ChessBase"]
[SourceQuality "1"]
[TimeControl "1200+5"]

1. d4 {[%emt 0:00:02]} Nf6 {[%emt 0:00:01]} 2. c4 {[%emt 0:00:01]} e6 {[%emt 0:00:01]} 3. g3 {[%emt 0:00:01]} c5 {[%emt 0:00:11]} 4. d5 {[%emt 0:00:01]} exd5 {[%emt 0:00:02]} 5. cxd5 {[%emt 0:00:01]} d6 {[%emt 0:00:01]} 6. Nc3 {[%emt 0:00:01]} g6 {[%emt 0:00:02]} 7. Bg2 {[%emt 0:00:02]} Bg7 {[%emt 0:00:01]} 8. Nf3 {[%emt 0:00:01]} O-O {[%emt 0:00:01]} 9. O-O {[%emt 0:00:02]} Re8 {[%emt 0:00:03]} 10. Re1 {[%emt 0:00:02]} a6 {[%emt 0:00:37]} 11. a4 {[%emt 0:00:01]} Nbd7 {[%emt 0:00:21]} 12. h3 {[%emt 0:00:45]} Rb8 {[%emt 0:00:34]} 13. Bf4 {[%emt 0:00:26]} Qc7 {[%emt 0:00:27]} 14. Rc1 {[%emt 0:00:18]} Nh5 {[%emt 0:00:09]} 15. Bd2 {[%emt 0:01:48]} Ne5 {[%emt 0:00:04]} 16. g4 {[%emt 0:00:30]} Nxf3+ {[%emt 0:00:14]} 17. exf3 {[%emt 0:01:53]} Rxe1+ {[%emt 0:00:11]} 18. Qxe1 Nf6 19. b4 {[%emt 0:03:11]} b6 {[%emt 0:02:06]} 20. g5 {[%emt 0:00:54]} Nd7 {[%emt 0:00:24]} 21. f4 {[%emt 0:00:25]} f5 {[%emt 0:01:41]} 22. Qe6+ {[%emt 0:03:40]} Kh8 {[%emt 0:00:00]} 23. Qf7 {[%emt 0:00:35]} Bb7 {[%emt 0:00:06]} 24. Re1 {[%emt 0:00:33]} Rf8 {[%emt 0:00:04]} 25. Re8 {[%emt 0:01:19]} Rxe8 {[%emt 0:01:09]} 26. Qxe8+ {[%emt 0:00:01]} Nf8 {[%emt 0:00:01]} 27. b5 {[%emt 0:00:18]} Qd7 {[%emt 0:02:07]} 28. Qb8 {[%emt 0:00:43]} a5 {[%emt 0:01:15]} 29. Bf3 {[%emt 0:00:14]} Kg8 {[%emt 0:00:06]} 30. Nd1 {[%emt 0:00:39]} c4 {[%emt 0:02:24]} 31. Kf1 {[%emt 0:01:50]} Kf7 {[%emt 0:00:12]} 32. Qa7 Qc7 {[%emt 0:00:09]} 33. Be3 {[%emt 0:02:10]} Nd7 {[%emt 0:00:18]} 34. Bc1 {[%emt 0:00:15]} c3 {[%emt 0:00:02]} 35. Ne3 {[%emt 0:00:00]} Bd4 {[%emt 0:00:29]} 36. Nc2 {[%emt 0:00:12]} Bg7 {[%emt 0:00:53]} 37. Be3 {[%emt 0:00:01]} Ke7 {[%emt 0:00:04]} 38. h4 {[%emt 0:00:06]} Qc4+ {[%emt 0:00:16]} 39. Ke1 {[%emt 0:00:08]} Bxd5 {[%emt 0:00:14]} 40. Bxd5 {[%emt 0:00:01]} Qxd5 {[%emt 0:00:00]} 41. Bxb6 {[%emt 0:00:03]} Qd2+ {[%emt 0:00:03]} 42. Kf1 {[%emt 0:00:00]} Qxc2 43. Be3 {[%emt 0:00:06]} Qd1+ {[%emt 0:00:05]} 44. Kg2 {[%emt 0:00:01]} c2 {[%emt 0:00:02]} 45. Qc7 {[%emt 0:00:03]} Bb2 {[%emt 0:00:19]} 46. Qxa5 {[%emt 0:00:19]} c1=Q {[%emt 0:00:12]} 47. Bxc1 {[%emt 0:00:01]} Bxc1 {[%emt 0:00:04]} 48. Qc3 {[%emt 0:00:10]} Bxf4 {[%emt 0:00:09]} 49. Qg7+ {[%emt 0:00:06]} Kd8 {[%emt 0:00:06]} 50. Qg8+ {[%emt 0:00:01]} Kc7 {[%emt 0:00:28]} 51. Qxh7 {[%emt 0:00:09]} Qg4+ {[%emt 0:00:51]} 52. Kf1 {[%emt 0:00:01]} Qf3 {[%emt 0:00:01]} 53. Kg1 {[%emt 0:00:03]} Bd2 {[%emt 0:00:14]} 54. Qe7 {[%emt 0:00:11]} Qg4+ {[%emt 0:00:10]} 55. Kf1 {[%emt 0:00:01]} Qxa4 {[%emt 0:00:13]} 56. h5 {[%emt 0:00:01]} Qc4+ {[%emt 0:00:08]} 57. Kg1 {[%emt 0:00:13]} Qg4+ {[%emt 0:00:02]} 58. Kf1 {[%emt 0:00:00]} Bxg5 {[%emt 0:00:36]} 59. b6+ {[%emt 0:00:01]} Kc6 {[%emt 0:00:02]} 60. Qe8 {[%emt 0:00:00]} Qh3+ {[%emt 0:01:31]} 61. Ke1 {[%emt 0:00:17]} Qh1+ {[%emt 0:00:04]} 62. Ke2 {[%emt 0:00:01]} Qxh5+ {[%emt 0:00:01]} 63. f3 {[%emt 0:00:06]} Qh7 {[%emt 0:00:39]} 64. Qc8+ {[%emt 0:00:10]} Kxb6 {[%emt 0:00:02]} 65. Qc2 {[%emt 0:00:03]} 0-1

[Event "HUN-ch Rapid 2019"]
[Site "Ajka"]
[Date "2019.07.19"]
[Round "3.9"]
[White "Csonka, Balazs"]
[Black "Medvegy, Zoltan"]
[Result "1-0"]
[ECO "B29"]
[WhiteElo "2472"]
[BlackElo "2539"]
[Annotator "ChessBase"]
[PlyCount "77"]
[EventDate "2019.07.18"]
[EventType "swiss"]
[EventCountry "HUN"]
[SourceTitle "playchess.com"]
[Source "ChessBase"]
[SourceQuality "1"]
[TimeControl "1200+5"]

1. e4 {[%emt 0:00:03]} c5 {[%emt 0:00:04]} 2. Nf3 {[%emt 0:00:02]} Nf6 {[%emt 0:00:01]} 3. e5 {[%emt 0:00:24]} Nd5 {[%emt 0:00:01]} 4. Nc3 {[%emt 0:00:02]} Nxc3 {[%emt 0:00:01]} 5. dxc3 {[%emt 0:00:02]} Nc6 {[%emt 0:00:04]} 6. Bc4 {[%emt 0:00:03]} Qc7 {[%emt 0:00:05]} 7. Bf4 {[%emt 0:01:12]} e6 {[%emt 0:00:01]} 8. Qd2 {[%emt 0:00:56]} h6 {[%emt 0:00:09]} 9. h4 {[%emt 0:00:26]} a6 {[%emt 0:00:47]} 10. O-O-O {[%emt 0:01:32]} b5 {[%emt 0:00:04]} 11. Bd3 {[%emt 0:00:04]} c4 {[%emt 0:00:47]} 12. Be4 {[%emt 0:00:18]} Bb7 {[%emt 0:00:01]} 13. h5 {[%emt 0:09:23]} Ne7 {[%emt 0:00:09]} 14. Qe2 {[%emt 0:01:49]} Rb8 {[%emt 0:06:31]} 15. Nd2 {[%emt 0:02:00]} Bd5 {[%emt 0:01:18]} 16. Bg3 {[%emt 0:00:40]} Qc6 {[%emt 0:01:42]} 17. Rh4 {[%emt 0:00:39]} Bxe4 {[%emt 0:01:51]} 18. Nxe4 {[%emt 0:00:35]} Nd5 {[%emt 0:00:13]} 19. Rg4 {[%emt 0:00:30]} a5 {[%emt 0:02:53]} 20. Qf3 {[%emt 0:00:01]} b4 {[%emt 0:01:26]} 21. cxb4 {[%emt 0:00:13]} axb4 {[%emt 0:00:15]} 22. Nd6+ {[%emt 0:00:37]} Bxd6 {[%emt 0:00:01]} 23. exd6 {[%emt 0:00:02]} b3 {[%emt 0:01:36]} 24. Rxg7 {[%emt 0:00:11]} Rf8 {[%emt 0:01:10]} 25. Rxd5 {[%emt 0:00:01]} c3 {[%emt 0:00:46]} 26. axb3 {[%emt 0:00:14]} Ra8 {[%emt 0:00:07]} 27. bxc3 {[%emt 0:00:09]} Ra1+ {[%emt 0:00:04]} 28. Kd2 {[%emt 0:00:05]} Qxd5+ 29. Qxd5 exd5 {[%emt 0:00:02]} 30. Bh4 {[%emt 0:00:11]} Rh1 {[%emt 0:00:12]} 31. Be7 {[%emt 0:00:05]} Rh8 {[%emt 0:00:07]} 32. g4 {[%emt 0:00:04]} Rh2 {[%emt 0:00:03]} 33. Ke2 {[%emt 0:00:03]} Rh3 {[%emt 0:00:01]} 34. f3 {[%emt 0:00:08]} Rh2+ {[%emt 0:00:01]} 35. Kd3 {[%emt 0:00:01]} Rf2 {[%emt 0:00:01]} 36. b4 {[%emt 0:00:06]} Rxf3+ {[%emt 0:00:05]} 37. Kd4 {[%emt 0:00:01]} Rf2 {[%emt 0:00:08]} 38. Kxd5 {[%emt 0:00:08]} Rxc2 {[%emt 0:00:04]} 39. c4 {[%emt 0:00:04]} 1-0

[Event "HUN-ch Rapid 2019"]
[Site "Ajka"]
[Date "2019.07.19"]
[Round "3.10"]
[White "Czebe, Attila"]
[Black "Emodi, Barnabas"]
[Result "1/2-1/2"]
[ECO "A05"]
[WhiteElo "2436"]
[BlackElo "2365"]
[Annotator "NA"]
[PlyCount "129"]
[EventDate "2019.07.18"]
[EventType "swiss"]
[EventCountry "HUN"]
[SourceTitle "playchess.com"]
[Source "ChessBase"]
[SourceQuality "1"]
[TimeControl "1200+5"]

1. Nf3 {[%emt 0:00:01]} Nf6 {[%emt 0:00:03]} 2. g3 {[%emt 0:00:01]} d5 {[%emt 0:00:06]} 3. Bg2 {[%emt 0:00:03]} c6 {[%emt 0:00:06]} 4. c4 {[%emt 0:00:07]} g6 {[%emt 0:00:19]} 5. cxd5 {[%emt 0:00:59]} cxd5 {[%emt 0:00:03]} 6. Ne5 {[%emt 0:00:03]} Bg7 {[%emt 0:00:25]} 7. Qa4+ {[%emt 0:00:02]} Nbd7 {[%emt 0:00:43]} 8. Nc3 {[%emt 0:00:32]} O-O {[%emt 0:00:30]} 9. Nxd7 {[%emt 0:00:04]} Bxd7 {[%emt 0:00:07]} 10. Qh4 {[%emt 0:00:02]} Bc6 {[%emt 0:00:46]} 11. d4 {[%emt 0:00:02]} Ne4 {[%emt 0:03:50]} 12. Bh6 {[%emt 0:02:12]} Qb6 {[%emt 0:02:54]} 13. Bxg7 {[%emt 0:00:57]} Qxb2 {[%emt 0:01:14]} 14. O-O {[%emt 0:00:05]} Kxg7 {[%emt 0:00:11]} 15. Nxe4 {[%emt 0:00:35]} dxe4 {[%emt 0:00:41]} 16. e3 {[%emt 0:00:01]} e5 {[%emt 0:02:23]} 17. Rfb1 {[%emt 0:01:07]} Qc3 {[%emt 0:00:13]} 18. Rc1 {[%emt 0:00:01]} Qb2 {[%emt 0:01:22]} 19. Rab1 {[%emt 0:01:44]} Qxa2 {[%emt 0:00:02]} 20. dxe5 {[%emt 0:00:01]} Qe6 {[%emt 0:02:01]} 21. Rc5 {[%emt 0:00:53]} h6 {[%emt 0:01:11]} 22. Bh3 {[%emt 0:00:03]} g5 {[%emt 0:00:15]} 23. Qh5 {[%emt 0:00:01]} Qg6 {[%emt 0:00:04]} 24. Qe2 {[%emt 0:00:20]} Rad8 {[%emt 0:00:01]} 25. Bg4 {[%emt 0:00:16]} Rd5 {[%emt 0:00:21]} 26. Rxd5 {[%emt 0:00:15]} Bxd5 {[%emt 0:00:01]} 27. Qd2 {[%emt 0:00:05]} Be6 {[%emt 0:00:28]} 28. Bxe6 {[%emt 0:00:14]} Qxe6 {[%emt 0:00:02]} 29. Rxb7 {[%emt 0:00:02]} Qxe5 {[%emt 0:00:03]} 30. Rxa7 {[%emt 0:00:02]} Rb8 {[%emt 0:00:04]} 31. Qa2 {[%emt 0:00:05]} Qf6 {[%emt 0:00:08]} 32. Rd7 {[%emt 0:00:13]} Rc8 {[%emt 0:00:14]} 33. Rd1 {[%emt 0:00:38]} Rb8 {[%emt 0:00:02]} 34. Qd5 {[%emt 0:00:07]} Rb2 {[%emt 0:00:32]} 35. Rf1 {[%emt 0:00:06]} Rb4 {[%emt 0:00:10]} 36. h3 {[%emt 0:00:09]} h5 {[%emt 0:00:18]} 37. Qd1 {[%emt 0:00:23]} Kg6 {[%emt 0:00:07]} 38. Qc2 {[%emt 0:00:05]} Qe6 {[%emt 0:00:05]} 39. Kg2 {[%emt 0:00:05]} Rc4 {[%emt 0:00:03]} 40. Qb1 Qf5 {[%emt 0:00:08]} 41. Rd1 {[%emt 0:00:10]} h4 {[%emt 0:00:09]} 42. Rd6+ {[%emt 0:01:23]} f6 {[%emt 0:00:05]} 43. Qd1 {[%emt 0:00:04]} hxg3 {[%emt 0:00:07]} 44. Kxg3 {[%emt 0:00:01]} Rc5 {[%emt 0:00:25]} 45. Rd8 {[%emt 0:00:06]} Rc7 {[%emt 0:00:11]} 46. Rd5 {[%emt 0:00:03]} Qe6 {[%emt 0:00:03]} 47. Rd6 {[%emt 0:01:23]} Qe5+ {[%emt 0:00:09]} 48. Kg2 {[%emt 0:00:02]} Qf5 {[%emt 0:00:05]} 49. Rd4 {[%emt 0:01:09]} Rh7 {[%emt 0:00:19]} 50. Qg4 {[%emt 0:00:01]} Qxg4+ {[%emt 0:00:00]} 51. hxg4 {[%emt 0:00:02]} Re7 {[%emt 0:00:02]} 52. Kf1 {[%emt 0:00:04]} Re6 {[%emt 0:00:03]} 53. Rd5 {[%emt 0:00:01]} Re7 {[%emt 0:00:02]} 54. Ke2 {[%emt 0:00:03]} Re8 {[%emt 0:00:02]} 55. Rd4 {[%emt 0:00:09]} Re6 {[%emt 0:00:03]} 56. Rd5 {[%emt 0:00:03]} Re8 {[%emt 0:00:01]} 57. Kd2 {[%emt 0:00:01]} Re6 {[%emt 0:00:06]} 58. Kc3 {[%emt 0:00:02]} Ra6 {[%emt 0:00:02]} 59. Rd2 {[%emt 0:00:35]} Rc6+ {[%emt 0:00:18]} 60. Kb3 {[%emt 0:00:18]} f5 {[%emt 0:00:02]} 61. gxf5+ {[%emt 0:00:11]} Kxf5 {[%emt 0:00:01]} 62. Rd8 {[%emt 0:00:01]} Rf6 {[%emt 0:00:16]} 63. Kc4 {[%emt 0:00:04]} Kg4 {[%emt 0:00:02]} 64. Kd4 {[%emt 0:00:08]} Rxf2 {[%emt 0:00:04]} 65. Kxe4 1/2-1/2

[Event "HUN-ch Rapid 2019"]
[Site "Ajka"]
[Date "2019.07.19"]
[Round "3.11"]
[White "Horvath, Tamas I"]
[Black "Vertetics, Attila"]
[Result "1/2-1/2"]
[ECO "B12"]
[WhiteElo "2318"]
[BlackElo "2438"]
[Annotator "NA"]
[PlyCount "54"]
[EventDate "2019.07.18"]
[EventType "swiss"]
[EventCountry "HUN"]
[SourceTitle "playchess.com"]
[Source "ChessBase"]
[SourceQuality "1"]
[TimeControl "1200+5"]

1. e4 {[%emt 0:00:04]} c6 {[%emt 0:00:02]} 2. d4 {[%emt 0:00:15]} d5 {[%emt 0:00:02]} 3. Nd2 {[%emt 0:00:08]} g6 {[%emt 0:00:02]} 4. Ngf3 {[%emt 0:00:05]} Bg7 {[%emt 0:00:01]} 5. h3 {[%emt 0:00:20]} Nh6 {[%emt 0:00:26]} 6. Bd3 {[%emt 0:00:32]} O-O {[%emt 0:00:06]} 7. O-O {[%emt 0:00:04]} f6 {[%emt 0:00:06]} 8. c4 {[%emt 0:00:11]} e6 {[%emt 0:00:06]} 9. Qb3 {[%emt 0:00:22]} Nf7 {[%emt 0:00:08]} 10. Re1 {[%emt 0:00:08]} a5 {[%emt 0:00:18]} 11. a3 {[%emt 0:00:10]} b6 {[%emt 0:00:33]} 12. exd5 {[%emt 0:00:15]} exd5 {[%emt 0:00:02]} 13. Nf1 {[%emt 0:00:04]} a4 {[%emt 0:02:28]} 14. Qc2 {[%emt 0:00:15]} dxc4 {[%emt 0:00:14]} 15. Bxc4 {[%emt 0:00:02]} Bf5 {[%emt 0:00:26]} 16. Qe2 {[%emt 0:00:21]} b5 {[%emt 0:00:10]} 17. Ba2 {[%emt 0:00:02]} Na6 {[%emt 0:00:39]} 18. Ng3 {[%emt 0:00:11]} Bd7 {[%emt 0:00:19]} 19. Bd2 {[%emt 0:00:39]} Nc7 {[%emt 0:00:17]} 20. Bb4 {[%emt 0:00:18]} Re8 {[%emt 0:00:11]} 21. Qc2 {[%emt 0:00:20]} Na6 {[%emt 0:01:39]} 22. Bd2 {[%emt 0:00:08]} Nc7 {[%emt 0:01:13]} 23. Bb4 {[%emt 0:00:04]} Na6 {[%emt 0:01:04]} 24. Bd2 {[%emt 0:00:03]} Nc7 {[%emt 0:01:12]} 25. Bb4 Na6 26. Bd2 Qb6 27. Ne4 Bf5 1/2-1/2

[Event "HUN-ch Rapid 2019"]
[Site "Ajka"]
[Date "2019.07.19"]
[Round "3.12"]
[White "Aczel, Gergely"]
[Black "Bodi, Tibor"]
[Result "1-0"]
[ECO "D10"]
[WhiteElo "2540"]
[BlackElo "2244"]
[Annotator "ChessBase"]
[PlyCount "123"]
[EventDate "2019.07.18"]
[EventType "swiss"]
[EventCountry "HUN"]
[SourceTitle "playchess.com"]
[Source "ChessBase"]
[SourceQuality "1"]
[TimeControl "1200+5"]

1. d4 {[%emt 0:00:01]} d5 {[%emt 0:00:02]} 2. c4 {[%emt 0:00:02]} c6 {[%emt 0:00:02]} 3. cxd5 {[%emt 0:00:01]} cxd5 {[%emt 0:00:01]} 4. Bf4 {[%emt 0:00:02]} Nc6 {[%emt 0:00:04]} 5. e3 {[%emt 0:00:01]} Nf6 {[%emt 0:00:11]} 6. Nc3 {[%emt 0:00:01]} a6 {[%emt 0:00:03]} 7. Bd3 {[%emt 0:00:02]} e6 {[%emt 0:00:21]} 8. Rc1 {[%emt 0:00:03]} Bd6 {[%emt 0:00:09]} 9. Bxd6 {[%emt 0:00:04]} Qxd6 {[%emt 0:00:02]} 10. f4 {[%emt 0:00:02]} O-O {[%emt 0:00:04]} 11. Nf3 {[%emt 0:00:02]} b5 {[%emt 0:00:10]} 12. O-O {[%emt 0:00:03]} Bd7 {[%emt 0:00:01]} 13. Ne5 {[%emt 0:00:10]} Rfc8 {[%emt 0:01:01]} 14. Qf3 {[%emt 0:00:02]} b4 {[%emt 0:00:45]} 15. Ne2 {[%emt 0:00:34]} Ne7 {[%emt 0:00:16]} 16. Nxd7 {[%emt 0:00:50]} Qxd7 {[%emt 0:00:14]} 17. Ng3 {[%emt 0:01:08]} Nf5 {[%emt 0:00:21]} 18. Nxf5 {[%emt 0:00:26]} exf5 {[%emt 0:00:01]} 19. Rc5 {[%emt 0:02:19]} Ne4 {[%emt 0:01:03]} 20. Bxe4 {[%emt 0:00:20]} fxe4 {[%emt 0:01:11]} 21. Qd1 {[%emt 0:00:02]} Rc7 {[%emt 0:08:01]} 22. Qd2 {[%emt 0:00:20]} a5 {[%emt 0:01:30]} 23. Rxc7 {[%emt 0:00:02]} Qxc7 {[%emt 0:00:05]} 24. Rc1 {[%emt 0:00:02]} Qb7 {[%emt 0:01:02]} 25. Rc5 {[%emt 0:00:05]} Qa6 {[%emt 0:01:35]} 26. h3 {[%emt 0:03:33]} g6 {[%emt 0:00:24]} 27. b3 {[%emt 0:00:14]} a4 {[%emt 0:00:24]} 28. Qxb4 {[%emt 0:00:42]} Qe2 {[%emt 0:00:52]} 29. Rc3 {[%emt 0:05:37]} a3 {[%emt 0:00:24]} 30. Kh2 {[%emt 0:01:06]} Qxa2 {[%emt 0:00:11]} 31. Rc7 {[%emt 0:00:26]} Qe2 {[%emt 0:00:40]} 32. Qe7 {[%emt 0:01:26]} Rf8 {[%emt 0:00:07]} 33. Qxa3 {[%emt 0:00:11]} Qxe3 {[%emt 0:00:01]} 34. Qd6 {[%emt 0:00:08]} Qxb3 {[%emt 0:00:06]} 35. f5 {[%emt 0:00:30]} Qb8 {[%emt 0:01:08]} 36. Rd7 {[%emt 0:01:30]} Qxd6+ {[%emt 0:00:13]} 37. Rxd6 {[%emt 0:00:01]} Re8 {[%emt 0:00:06]} 38. Kg1 {[%emt 0:00:07]} Kg7 {[%emt 0:00:04]} 39. f6+ {[%emt 0:00:25]} Kh6 {[%emt 0:00:01]} 40. Rxd5 {[%emt 0:00:01]} g5 {[%emt 0:00:07]} 41. Re5 {[%emt 0:00:35]} Rd8 {[%emt 0:00:10]} 42. Rxe4 {[%emt 0:00:04]} Kg6 {[%emt 0:00:00]} 43. Kf2 {[%emt 0:00:03]} Kxf6 {[%emt 0:00:01]} 44. g4 {[%emt 0:00:04]} Ra8 {[%emt 0:00:04]} 45. Re3 {[%emt 0:00:07]} Ra2+ {[%emt 0:00:04]} 46. Kf3 {[%emt 0:00:02]} Rd2 {[%emt 0:00:03]} 47. Ke4 {[%emt 0:00:03]} Ke6 {[%emt 0:00:04]} 48. Rf3 {[%emt 0:00:02]} Re2+ {[%emt 0:00:03]} 49. Kd3 {[%emt 0:00:01]} Rh2 {[%emt 0:00:03]} 50. Re3+ {[%emt 0:00:10]} Kd5 {[%emt 0:00:08]} 51. Re5+ {[%emt 0:00:03]} Kd6 {[%emt 0:00:01]} 52. Rxg5 {[%emt 0:00:02]} Rxh3+ {[%emt 0:00:00]} 53. Ke4 {[%emt 0:00:02]} Rh1 {[%emt 0:00:03]} 54. Rd5+ {[%emt 0:00:04]} Ke6 {[%emt 0:00:01]} 55. Re5+ {[%emt 0:00:01]} Kd6 {[%emt 0:00:01]} 56. Rf5 {[%emt 0:00:06]} Re1+ {[%emt 0:00:04]} 57. Kd3 {[%emt 0:00:16]} Ke6 {[%emt 0:00:03]} 58. Rh5 {[%emt 0:00:09]} Rg1 {[%emt 0:00:02]} 59. Rxh7 {[%emt 0:00:10]} Rxg4 {[%emt 0:00:02]} 60. Kc4 {[%emt 0:00:07]} Rg1 {[%emt 0:00:21]} 61. d5+ {[%emt 0:00:01]} Ke5 {[%emt 0:00:04]} 62. Rxf7 {[%emt 0:00:08]} 1-0